[Event "Titled Tuesday Blitz April 05 Late 2022"]
[White "Ronka, Erik"]
[Black "Rorrer, Grayson"]
[WhiteFideId "505080"]
[BlackFideId "30944996"]
[WhiteElo "2264"]
[BlackElo "2122"]
[Result "0-1"]
[Round "09"]
[TimeControl "180+1"]
[Date "2022.04.05"]
[WhiteClock "0:00:04"]
[BlackClock "0:00:03"]

1. e4 {[%clk 0:03:00]}  e5 {[%clk 0:02:59]} 2. Nf3 {[%clk 0:03:01]}  Nc6 {[%clk 0:03:00]} 3. Bb5 {[%clk 0:03:01]}  a6 {[%clk 0:02:59]} 4. Ba4 {[%clk 0:03:01]}  g6 {[%clk 0:02:59]} 5. c3 {[%clk 0:03:01]}  Bg7 {[%clk 0:03:00]} 6. d4 {[%clk 0:03:01]}  exd4 {[%clk 0:03:00]} 7. cxd4 {[%clk 0:03:02]}  b5 {[%clk 0:03:01]} 8. Bc2 {[%clk 0:03:02]}  d6 {[%clk 0:03:01]} 9. O-O {[%clk 0:02:59]}  Bg4 {[%clk 0:03:01]} 10. d5 {[%clk 0:02:46]}  Nd4 {[%clk 0:02:36]} 11. Nbd2 {[%clk 0:02:46]}  Qf6 {[%clk 0:02:34]} 12. Bd3 {[%clk 0:02:33]}  Ne7 {[%clk 0:02:13]} 13. h3 {[%clk 0:02:03]}  Bxf3 {[%clk 0:01:54]} 14. Nxf3 {[%clk 0:02:01]}  c5 {[%clk 0:01:52]} 15. dxc6 {[%clk 0:01:47]}  Nexc6 {[%clk 0:01:46]} 16. Nxd4 {[%clk 0:01:45]}  Nxd4 {[%clk 0:01:39]} 17. Be3 {[%clk 0:01:36]}  O-O {[%clk 0:01:37]} 18. Qd2 {[%clk 0:01:26]}  Ne6 {[%clk 0:01:24]} 19. Rab1 {[%clk 0:01:22]}  Nc5 {[%clk 0:01:23]} 20. Bc2 {[%clk 0:01:15]}  Rfe8 {[%clk 0:01:18]} 21. f3 {[%clk 0:01:15]}  h5 {[%clk 0:01:04]} 22. Rfd1 {[%clk 0:01:12]}  Bf8 {[%clk 0:01:02]} 23. b4 {[%clk 0:01:02]}  Nd7 {[%clk 0:00:57]} 24. Bb3 {[%clk 0:01:00]}  Rac8 {[%clk 0:00:35]} 25. Bd4 {[%clk 0:00:52]}  Qh4 {[%clk 0:00:28]} 26. Bd5 {[%clk 0:00:39]}  Rc7 {[%clk 0:00:14]} 27. Rbc1 {[%clk 0:00:29]}  Rxc1 {[%clk 0:00:11]} 28. Rxc1 {[%clk 0:00:30]}  Ne5 {[%clk 0:00:11]} 29. Rc7 {[%clk 0:00:22]}  Re7 {[%clk 0:00:10]} 30. Rxe7 {[%clk 0:00:17]}  Bxe7 {[%clk 0:00:07]} 31. Bf2 {[%clk 0:00:15]}  Qxh3 {[%clk 0:00:06]} 32. Qh6 {[%clk 0:00:05]}  Qd7 {[%clk 0:00:03]} 33. f4 {[%clk 0:00:05]}  Bf8 {[%clk 0:00:02]} 34. Qg5 {[%clk 0:00:06]}  Ng4 {[%clk 0:00:02]} 35. Qxg6+ {[%clk 0:00:05]}  Bg7 {[%clk 0:00:03]} 36. Qxh5 {[%clk 0:00:03]}  Nxf2 {[%clk 0:00:03]} 37. Kxf2 {[%clk 0:00:04]}  Qc7 {[%clk 0:00:03]} 38. Kf3 {[%clk 0:00:04]}  Qc3+ {[%clk 0:00:03]} 39. Kg4 {[%clk 0:00:04]}  Qf6 {[%clk 0:00:04]} 40. Qf5 {[%clk 0:00:04]}  Qe7 {[%clk 0:00:03]} 41. Qg5 {[%clk 0:00:04]}  Qd7+ {[%clk 0:00:02]} 42. Qf5 {[%clk 0:00:05]}  Qe7 {[%clk 0:00:02]} 43. Kf3 {[%clk 0:00:06]}  Qc7 {[%clk 0:00:02]} 44. g4 {[%clk 0:00:06]}  Qc3+ {[%clk 0:00:02]} 45. Kg2 {[%clk 0:00:07]}  Qd2+ {[%clk 0:00:03]} 46. Kg3 {[%clk 0:00:06]}  Qe1+ {[%clk 0:00:03]} 47. Kg2 {[%clk 0:00:07]}  Qe2+ {[%clk 0:00:03]} 48. Kg3 {[%clk 0:00:07]}  Qe3+ {[%clk 0:00:03]} 49. Kg2 {[%clk 0:00:07]}  Qd2+ {[%clk 0:00:03]} 50. Kg3 {[%clk 0:00:07]}  Qc3+ {[%clk 0:00:03]} 51. Kg2 {[%clk 0:00:08]}  Qb2+ {[%clk 0:00:02]} 52. Kg3 {[%clk 0:00:08]}  Qc3+ {[%clk 0:00:02]} 53. Kh4 {[%clk 0:00:07]}  Qe1+ {[%clk 0:00:03]} 54. Kg5 {[%clk 0:00:06]}  Bh6+ {[%clk 0:00:01]} 55. Kxh6 {[%clk 0:00:06]}  Qh4+ {[%clk 0:00:02]} 56. Qh5 {[%clk 0:00:06]}  Qf6+ {[%clk 0:00:02]} 57. Qg6+ {[%clk 0:00:04]}  Qxg6# {[%clk 0:00:03]} 0-1


[Site "https://www.chess.com"]

[Event "Titled Tuesday Blitz April 05 Late 2022"]
[White "Rytenko, Vsevolod"]
[Black "Nazaretyan, Tigran"]
[WhiteFideId "14133040"]
[BlackFideId "24162345"]
[WhiteElo "2120"]
[BlackElo "2225"]
[Result "1-0"]
[Round "09"]
[TimeControl "180+1"]
[Date "2022.04.05"]
[WhiteClock "0:00:11"]
[BlackClock "0:00:09"]

1. e4 {[%clk 0:02:59]}  c5 {[%clk 0:02:59]} 2. Nf3 {[%clk 0:02:59]}  Nc6 {[%clk 0:02:58]} 3. Bb5 {[%clk 0:02:59]}  g6 {[%clk 0:02:58]} 4. O-O {[%clk 0:02:58]}  Bg7 {[%clk 0:02:58]} 5. Re1 {[%clk 0:02:58]}  Nf6 {[%clk 0:02:57]} 6. c3 {[%clk 0:02:59]}  O-O {[%clk 0:02:57]} 7. d4 {[%clk 0:02:59]}  d5 {[%clk 0:02:57]} 8. exd5 {[%clk 0:02:55]}  Nxd5 {[%clk 0:02:44]} 9. Bg5 {[%clk 0:02:54]}  cxd4 {[%clk 0:02:43]} 10. Bxc6 {[%clk 0:02:53]}  bxc6 {[%clk 0:02:40]} 11. Nxd4 {[%clk 0:02:53]}  Bb7 {[%clk 0:02:37]} 12. Nd2 {[%clk 0:02:44]}  c5 {[%clk 0:02:27]} 13. N4f3 {[%clk 0:02:43]}  Qc7 {[%clk 0:02:23]} 14. Qa4 {[%clk 0:02:36]}  h6 {[%clk 0:02:17]} 15. Bh4 {[%clk 0:02:28]}  Rfe8 {[%clk 0:02:14]} 16. Bg3 {[%clk 0:02:27]}  e5 {[%clk 0:02:10]} 17. Nc4 {[%clk 0:02:23]}  Nb6 {[%clk 0:02:07]} 18. Qa5 {[%clk 0:02:10]}  Bxf3 {[%clk 0:01:56]} 19. gxf3 {[%clk 0:02:03]}  f5 {[%clk 0:01:46]} 20. Qb5 {[%clk 0:01:35]}  Re7 {[%clk 0:01:18]} 21. f4 {[%clk 0:01:15]}  g5 {[%clk 0:01:00]} 22. fxg5 {[%clk 0:00:39]}  hxg5 {[%clk 0:00:58]} 23. f3 {[%clk 0:00:37]}  Rae8 {[%clk 0:00:53]} 24. Bf2 {[%clk 0:00:35]}  Nd7 {[%clk 0:00:42]} 25. Rad1 {[%clk 0:00:33]}  Rb8 {[%clk 0:00:33]} 26. Qa6 {[%clk 0:00:31]}  Nb6 {[%clk 0:00:30]} 27. Nd6 {[%clk 0:00:29]}  Rf8 {[%clk 0:00:23]} 28. Qb5 {[%clk 0:00:25]}  g4 {[%clk 0:00:17]} 29. Qxc5 {[%clk 0:00:24]}  gxf3 {[%clk 0:00:16]} 30. Qxc7 {[%clk 0:00:13]}  Rxc7 {[%clk 0:00:15]} 31. Nb5 {[%clk 0:00:14]}  Rb7 {[%clk 0:00:12]} 32. Nd6 {[%clk 0:00:13]}  Rd7 {[%clk 0:00:11]} 33. Nb5 {[%clk 0:00:12]}  Rxd1 {[%clk 0:00:11]} 34. Rxd1 {[%clk 0:00:13]}  Nc4 {[%clk 0:00:11]} 35. b3 {[%clk 0:00:12]}  Na5 {[%clk 0:00:09]} 36. Bxa7 {[%clk 0:00:10]}  e4 {[%clk 0:00:09]} 37. c4 {[%clk 0:00:11]}  f4 {[%clk 0:00:10]} 38. Re1 {[%clk 0:00:08]}  e3 {[%clk 0:00:10]} 39. Bxe3 {[%clk 0:00:08]}  fxe3 {[%clk 0:00:10]} 40. Rxe3 {[%clk 0:00:09]}  Nc6 {[%clk 0:00:10]} 41. Kf2 {[%clk 0:00:08]}  Nd4 {[%clk 0:00:10]} 42. Rd3 {[%clk 0:00:05]}  Nxb5 {[%clk 0:00:06]} 43. cxb5 {[%clk 0:00:06]}  Ra8 {[%clk 0:00:05]} 44. a4 {[%clk 0:00:06]}  Rf8 {[%clk 0:00:04]} 45. Rxf3 {[%clk 0:00:05]}  Bd4+ {[%clk 0:00:05]} 46. Ke2 {[%clk 0:00:05]}  Re8+ {[%clk 0:00:05]} 47. Kd3 {[%clk 0:00:06]}  Bb6 {[%clk 0:00:05]} 48. Rf6 {[%clk 0:00:05]}  Re3+ {[%clk 0:00:05]} 49. Kc4 {[%clk 0:00:05]}  Re4+ {[%clk 0:00:06]} 50. Kd5 {[%clk 0:00:05]}  Rb4 {[%clk 0:00:06]} 51. Rxb6 {[%clk 0:00:05]}  Rxb3 {[%clk 0:00:06]} 52. a5 {[%clk 0:00:05]}  Kf7 {[%clk 0:00:06]} 53. a6 {[%clk 0:00:06]}  Ke7 {[%clk 0:00:06]} 54. Rb7+ {[%clk 0:00:06]}  Kf6 {[%clk 0:00:06]} 55. a7 {[%clk 0:00:06]}  Ra3 {[%clk 0:00:06]} 56. b6 {[%clk 0:00:07]}  Ra5+ {[%clk 0:00:06]} 57. Kc6 {[%clk 0:00:07]}  Ra1 {[%clk 0:00:06]} 58. Rb8 {[%clk 0:00:08]}  Rc1+ {[%clk 0:00:06]} 59. Kb7 {[%clk 0:00:09]}  Rc8 {[%clk 0:00:05]} 60. a8=Q {[%clk 0:00:09]}  Rxb8+ {[%clk 0:00:06]} 61. Qxb8 {[%clk 0:00:10]}  Kf5 {[%clk 0:00:06]} 62. Qc7 {[%clk 0:00:11]}  Kg4 {[%clk 0:00:07]} 63. Kc8 {[%clk 0:00:12]}  Kf3 {[%clk 0:00:08]} 64. b7 {[%clk 0:00:12]}  Kg2 {[%clk 0:00:08]} 65. b8=Q {[%clk 0:00:11]}  Kh1 {[%clk 0:00:09]} 66. Qbb7+ {[%clk 0:00:11]} 1-0


[Site "https://www.chess.com"]

[Event "Titled Tuesday Blitz April 05 Late 2022"]
[White "Sadovsky, Artem"]
[Black "Janturin, Artur"]
[WhiteFideId "4155840"]
[BlackFideId "4130022"]
[WhiteElo "2491"]
[BlackElo "2345"]
[Result "0-1"]
[Round "09"]
[TimeControl "180+1"]
[Date "2022.04.06"]
[WhiteClock "0:00:04"]
[BlackClock "0:00:29"]

1. c4 {[%clk 0:02:35]}  b6 {[%clk 0:02:59]} 2. e4 {[%clk 0:02:29]}  e6 {[%clk 0:02:56]} 3. Nf3 {[%clk 0:02:22]}  Bb7 {[%clk 0:02:56]} 4. Bd3 {[%clk 0:02:18]}  c5 {[%clk 0:02:37]} 5. O-O {[%clk 0:02:17]}  Nc6 {[%clk 0:02:31]} 6. Nc3 {[%clk 0:02:11]}  g6 {[%clk 0:02:26]} 7. Re1 {[%clk 0:02:05]}  Bg7 {[%clk 0:02:26]} 8. e5 {[%clk 0:01:58]}  Nge7 {[%clk 0:02:18]} 9. Nb5 {[%clk 0:01:42]}  Nc8 {[%clk 0:01:46]} 10. Be4 {[%clk 0:01:41]}  a6 {[%clk 0:01:42]} 11. Nd6+ {[%clk 0:01:18]}  Nxd6 {[%clk 0:01:41]} 12. exd6 {[%clk 0:01:19]}  Qb8 {[%clk 0:01:39]} 13. d4 {[%clk 0:01:19]}  Nxd4 {[%clk 0:01:32]} 14. Nxd4 {[%clk 0:01:14]}  Bxd4 {[%clk 0:01:32]} 15. Bxb7 {[%clk 0:01:01]}  Qxb7 {[%clk 0:01:33]} 16. Bg5 {[%clk 0:01:01]}  O-O {[%clk 0:01:27]} 17. Be7 {[%clk 0:00:57]}  Rfb8 {[%clk 0:01:26]} 18. Rb1 {[%clk 0:00:56]}  b5 {[%clk 0:01:26]} 19. b3 {[%clk 0:00:45]}  a5 {[%clk 0:01:25]} 20. a4 {[%clk 0:00:44]}  bxc4 {[%clk 0:01:18]} 21. bxc4 {[%clk 0:00:45]}  Qa7 {[%clk 0:00:58]} 22. Rb5 {[%clk 0:00:40]}  Rxb5 {[%clk 0:00:58]} 23. cxb5 {[%clk 0:00:35]}  c4 {[%clk 0:00:57]} 24. Qf3 {[%clk 0:00:36]}  Rc8 {[%clk 0:00:51]} 25. Rb1 {[%clk 0:00:20]}  c3 {[%clk 0:00:49]} 26. b6 {[%clk 0:00:20]}  c2 {[%clk 0:00:46]} 27. Rc1 {[%clk 0:00:13]}  Qxb6 {[%clk 0:00:45]} 28. Qd3 {[%clk 0:00:06]}  Bxf2+ {[%clk 0:00:33]} 29. Kf1 {[%clk 0:00:06]}  Be3 {[%clk 0:00:30]} 30. Rxc2 {[%clk 0:00:05]}  Qb1+ {[%clk 0:00:30]} 31. Ke2 {[%clk 0:00:05]}  Qxc2+ {[%clk 0:00:29]} 32. Qxc2 {[%clk 0:00:05]}  Rxc2+ {[%clk 0:00:29]} 33. Kxe3 {[%clk 0:00:06]}  Rc4 {[%clk 0:00:29]} 34. Bd8 {[%clk 0:00:01]}  Rxa4 {[%clk 0:00:29]} 35. Kd3 {[%clk 0:00:01]}  f5 {[%clk 0:00:28]} 36. g3 {[%clk 0:00:01]}  Kf7 {[%clk 0:00:28]} 37. h4 {[%clk 0:00:01]}  e5 {[%clk 0:00:28]} 38. Be7 {[%clk 0:00:01]}  Ke6 {[%clk 0:00:28]} 39. Kc3 {[%clk 0:00:02]}  Rg4 {[%clk 0:00:28]} 40. Kb3 {[%clk 0:00:02]}  Rxg3+ {[%clk 0:00:28]} 41. Ka4 {[%clk 0:00:02]}  Rd3 {[%clk 0:00:27]} 42. Kxa5 {[%clk 0:00:03]}  Rxd6 {[%clk 0:00:28]} 43. Bxd6 {[%clk 0:00:03]}  Kxd6 {[%clk 0:00:28]} 44. h5 {[%clk 0:00:04]}  gxh5 {[%clk 0:00:29]} 0-1


[Site "https://www.chess.com"]

[Event "Titled Tuesday Blitz April 05 Late 2022"]
[White "Sanal, Vahap"]
[Black "Sevian, Samuel"]
[WhiteFideId "6300545"]
[BlackFideId "2040506"]
[WhiteElo "2603"]
[BlackElo "2698"]
[Result "1-0"]
[Round "09"]
[TimeControl "180+1"]
[Date "2022.04.05"]
[WhiteClock "0:00:04"]
[BlackClock "0:00:01"]

1. e4 {[%clk 0:03:00]}  Nc6 {[%clk 0:02:50]} 2. d4 {[%clk 0:03:00]}  d5 {[%clk 0:02:47]} 3. e5 {[%clk 0:03:00]}  Bf5 {[%clk 0:02:47]} 4. c3 {[%clk 0:03:00]}  e6 {[%clk 0:02:47]} 5. Bd3 {[%clk 0:03:00]}  Nge7 {[%clk 0:02:47]} 6. Ne2 {[%clk 0:02:57]}  Bg6 {[%clk 0:02:48]} 7. O-O {[%clk 0:02:57]}  Qd7 {[%clk 0:02:48]} 8. Na3 {[%clk 0:02:47]}  Na5 {[%clk 0:02:48]} 9. b4 {[%clk 0:02:42]}  Nac6 {[%clk 0:02:48]} 10. Nc2 {[%clk 0:02:42]}  Bxd3 {[%clk 0:02:48]} 11. Qxd3 {[%clk 0:02:41]}  Ng6 {[%clk 0:02:49]} 12. f4 {[%clk 0:02:38]}  Be7 {[%clk 0:02:47]} 13. f5 {[%clk 0:02:34]}  exf5 {[%clk 0:02:47]} 14. Ng3 {[%clk 0:02:32]}  Nh4 {[%clk 0:02:48]} 15. Nxf5 {[%clk 0:02:29]}  Nxf5 {[%clk 0:02:48]} 16. Rxf5 {[%clk 0:02:29]}  f6 {[%clk 0:02:48]} 17. b5 {[%clk 0:02:25]}  Nd8 {[%clk 0:02:46]} 18. exf6 {[%clk 0:02:24]}  Bxf6 {[%clk 0:02:46]} 19. Ba3 {[%clk 0:02:23]}  Ne6 {[%clk 0:02:44]} 20. Ne3 {[%clk 0:02:18]}  c6 {[%clk 0:02:41]} 21. bxc6 {[%clk 0:02:15]}  bxc6 {[%clk 0:02:42]} 22. Ng4 {[%clk 0:02:15]}  O-O-O {[%clk 0:02:19]} 23. Rb1 {[%clk 0:02:11]}  Nc7 {[%clk 0:02:19]} 24. Nxf6 {[%clk 0:02:04]}  gxf6 {[%clk 0:02:19]} 25. Rxf6 {[%clk 0:02:05]}  Rhe8 {[%clk 0:02:14]} 26. Rd6 {[%clk 0:01:54]}  Qe7 {[%clk 0:01:50]} 27. Qf5+ {[%clk 0:01:17]}  Rd7 {[%clk 0:01:50]} 28. h3 {[%clk 0:01:12]}  Qf7 {[%clk 0:01:44]} 29. Qxf7 {[%clk 0:01:08]}  Rxf7 {[%clk 0:01:45]} 30. Rxc6 {[%clk 0:01:08]}  Kd7 {[%clk 0:01:45]} 31. Rd6+ {[%clk 0:01:07]}  Kc8 {[%clk 0:01:45]} 32. Rc6 {[%clk 0:01:03]}  Kd7 {[%clk 0:01:45]} 33. Rd6+ {[%clk 0:00:59]}  Kc8 {[%clk 0:01:45]} 34. Rb2 {[%clk 0:00:57]}  h5 {[%clk 0:01:41]} 35. Bc5 {[%clk 0:00:55]}  h4 {[%clk 0:01:39]} 36. Rh6 {[%clk 0:00:53]}  Re4 {[%clk 0:01:35]} 37. Kh2 {[%clk 0:00:53]}  Ne6 {[%clk 0:01:32]} 38. Rh8+ {[%clk 0:00:51]}  Kc7 {[%clk 0:01:32]} 39. Bxa7 {[%clk 0:00:51]}  Rf1 {[%clk 0:01:28]} 40. Bb8+ {[%clk 0:00:47]}  Kd7 {[%clk 0:01:15]} 41. a4 {[%clk 0:00:36]}  Ng5 {[%clk 0:01:07]} 42. Rb7+ {[%clk 0:00:31]}  Kc6 {[%clk 0:01:06]} 43. Rc7+ {[%clk 0:00:32]}  Kb6 {[%clk 0:01:02]} 44. Rh6+ {[%clk 0:00:32]}  Re6 {[%clk 0:00:59]} 45. Rxe6+ {[%clk 0:00:27]}  Nxe6 {[%clk 0:00:59]} 46. Rh7 {[%clk 0:00:22]}  Ng5 {[%clk 0:01:00]} 47. Rxh4 {[%clk 0:00:19]}  Ne4 {[%clk 0:00:58]} 48. Rh7 {[%clk 0:00:14]}  Nxc3 {[%clk 0:00:54]} 49. Be5 {[%clk 0:00:14]}  Ne4 {[%clk 0:00:48]} 50. Rh8 {[%clk 0:00:14]}  Nf2 {[%clk 0:00:48]} 51. Rb8+ {[%clk 0:00:14]}  Ka6 {[%clk 0:00:46]} 52. Rd8 {[%clk 0:00:13]}  Rh1+ {[%clk 0:00:45]} 53. Kg3 {[%clk 0:00:13]}  Ne4+ {[%clk 0:00:46]} 54. Kh4 {[%clk 0:00:13]}  Nc3 {[%clk 0:00:46]} 55. Rc8 {[%clk 0:00:12]}  Ne4 {[%clk 0:00:45]} 56. Rd8 {[%clk 0:00:13]}  Nc3 {[%clk 0:00:45]} 57. g4 {[%clk 0:00:13]}  Rg1 {[%clk 0:00:45]} 58. g5 {[%clk 0:00:13]}  Ne4 {[%clk 0:00:45]} 59. Bf4 {[%clk 0:00:11]}  Rf1 {[%clk 0:00:42]} 60. Kg4 {[%clk 0:00:11]}  Nf2+ {[%clk 0:00:43]} 61. Kh5 {[%clk 0:00:08]}  Nxh3 {[%clk 0:00:42]} 62. Be5 {[%clk 0:00:09]}  Rh1 {[%clk 0:00:39]} 63. Kg6 {[%clk 0:00:08]}  Rg1 {[%clk 0:00:40]} 64. Bf6 {[%clk 0:00:07]}  Rf1 {[%clk 0:00:37]} 65. Kg7 {[%clk 0:00:05]}  Nf4 {[%clk 0:00:36]} 66. Rd6+ {[%clk 0:00:06]}  Kb7 {[%clk 0:00:36]} 67. Be5 {[%clk 0:00:06]}  Nh3 {[%clk 0:00:32]} 68. g6 {[%clk 0:00:06]}  Ng5 {[%clk 0:00:31]} 69. a5 {[%clk 0:00:06]}  Rg1 {[%clk 0:00:27]} 70. Rb6+ {[%clk 0:00:06]}  Ka7 {[%clk 0:00:26]} 71. Bb8+ {[%clk 0:00:06]}  Ka8 {[%clk 0:00:27]} 72. Bf4 {[%clk 0:00:05]}  Nf3 {[%clk 0:00:25]} 73. Be5 {[%clk 0:00:03]}  Ng5 {[%clk 0:00:21]} 74. Rd6 {[%clk 0:00:03]}  Rf1 {[%clk 0:00:18]} 75. Kg8 {[%clk 0:00:03]}  Rc1 {[%clk 0:00:15]} 76. Rd8+ {[%clk 0:00:03]}  Ka7 {[%clk 0:00:15]} 77. g7 {[%clk 0:00:03]}  Rf1 {[%clk 0:00:11]} 78. Re8 {[%clk 0:00:03]}  Ka6 {[%clk 0:00:10]} 79. Bd6 {[%clk 0:00:03]}  Ne4 {[%clk 0:00:08]} 80. Re6 {[%clk 0:00:01]}  Kxa5 {[%clk 0:00:05]} 81. Be5 {[%clk 0:00:02]}  Ng5 {[%clk 0:00:04]} 82. Rg6 {[%clk 0:00:02]}  Ne4 {[%clk 0:00:04]} 83. Kh7 {[%clk 0:00:03]}  Rh1+ {[%clk 0:00:04]} 84. Rh6 {[%clk 0:00:03]}  Ng5+ {[%clk 0:00:03]} 85. Kg6 {[%clk 0:00:04]}  Rg1 {[%clk 0:00:03]} 86. g8=Q {[%clk 0:00:04]}  Nf7+ {[%clk 0:00:01]} 87. Kxf7 {[%clk 0:00:04]} 1-0


[Site "https://www.chess.com"]

[Event "Titled Tuesday Blitz April 05 Late 2022"]
[White "Silvestre, Christian"]
[Black "Brizzi, Milagros Tatiana"]
[WhiteFideId "30956269"]
[BlackFideId "128350"]
[WhiteElo "2380"]
[BlackElo "1844"]
[Result "1-0"]
[Round "09"]
[TimeControl "180+1"]
[Date "2022.04.06"]
[WhiteClock "0:00:09"]
[BlackClock "0:00:01"]

1. e4 {[%clk 0:02:59]}  c6 {[%clk 0:02:56]} 2. d4 {[%clk 0:02:55]}  d5 {[%clk 0:02:56]} 3. e5 {[%clk 0:02:55]}  Bf5 {[%clk 0:02:56]} 4. Nf3 {[%clk 0:02:53]}  e6 {[%clk 0:02:55]} 5. Be2 {[%clk 0:02:52]}  c5 {[%clk 0:02:55]} 6. c3 {[%clk 0:02:46]}  Nc6 {[%clk 0:02:51]} 7. O-O {[%clk 0:02:45]}  cxd4 {[%clk 0:02:50]} 8. cxd4 {[%clk 0:02:44]}  Nge7 {[%clk 0:02:46]} 9. Nc3 {[%clk 0:02:32]}  Nc8 {[%clk 0:02:43]} 10. Be3 {[%clk 0:02:24]}  Be7 {[%clk 0:02:42]} 11. a3 {[%clk 0:02:15]}  O-O {[%clk 0:02:39]} 12. b4 {[%clk 0:02:15]}  a6 {[%clk 0:02:39]} 13. Rc1 {[%clk 0:02:13]}  Nb6 {[%clk 0:02:32]} 14. Nd2 {[%clk 0:02:08]}  Rc8 {[%clk 0:02:30]} 15. g4 {[%clk 0:02:00]}  Bg6 {[%clk 0:02:29]} 16. f4 {[%clk 0:01:59]}  Qd7 {[%clk 0:02:21]} 17. Qe1 {[%clk 0:01:27]}  f6 {[%clk 0:02:20]} 18. Qg3 {[%clk 0:01:21]}  fxe5 {[%clk 0:02:18]} 19. fxe5 {[%clk 0:01:22]}  Rxf1+ {[%clk 0:02:07]} 20. Nxf1 {[%clk 0:01:11]}  Nd8 {[%clk 0:01:59]} 21. h4 {[%clk 0:01:02]}  Nc4 {[%clk 0:01:44]} 22. Bxc4 {[%clk 0:00:59]}  Rxc4 {[%clk 0:01:44]} 23. h5 {[%clk 0:00:59]}  Be8 {[%clk 0:01:36]} 24. Ne2 {[%clk 0:00:56]}  Qc7 {[%clk 0:01:26]} 25. Rxc4 {[%clk 0:00:53]}  Qxc4 {[%clk 0:01:26]} 26. Qf3 {[%clk 0:00:42]}  Bb5 {[%clk 0:01:22]} 27. Neg3 {[%clk 0:00:34]}  Nc6 {[%clk 0:01:15]} 28. Nd2 {[%clk 0:00:31]}  Qd3 {[%clk 0:01:05]} 29. Qf4 {[%clk 0:00:21]}  h6 {[%clk 0:00:52]} 30. Nf3 {[%clk 0:00:15]}  Qd1+ {[%clk 0:00:45]} 31. Kh2 {[%clk 0:00:14]}  Qc2+ {[%clk 0:00:41]} 32. Kh3 {[%clk 0:00:14]}  Nd8 {[%clk 0:00:35]} 33. g5 {[%clk 0:00:14]}  hxg5 {[%clk 0:00:26]} 34. Nxg5 {[%clk 0:00:15]}  Bd3 {[%clk 0:00:20]} 35. Nf3 {[%clk 0:00:13]}  Nf7 {[%clk 0:00:17]} 36. Qg4 {[%clk 0:00:10]}  Bf5 {[%clk 0:00:16]} 37. Nxf5 {[%clk 0:00:10]}  exf5 {[%clk 0:00:16]} 38. Qg6 {[%clk 0:00:09]}  Qe4 {[%clk 0:00:15]} 39. h6 {[%clk 0:00:04]}  Nxh6 {[%clk 0:00:13]} 40. Bxh6 {[%clk 0:00:03]}  Qxf3+ {[%clk 0:00:13]} 41. Kh2 {[%clk 0:00:03]}  Qf2+ {[%clk 0:00:12]} 42. Kh3 {[%clk 0:00:03]}  Qf3+ {[%clk 0:00:12]} 43. Kh2 {[%clk 0:00:04]}  Qe2+ {[%clk 0:00:11]} 44. Kh3 {[%clk 0:00:04]}  Qf1+ {[%clk 0:00:10]} 45. Kh2 {[%clk 0:00:04]}  Qe2+ {[%clk 0:00:09]} 46. Kh1 {[%clk 0:00:04]}  Qf3+ {[%clk 0:00:09]} 47. Kg1 {[%clk 0:00:04]}  Qg4+ {[%clk 0:00:08]} 48. Qxg4 {[%clk 0:00:03]}  fxg4 {[%clk 0:00:09]} 49. Be3 {[%clk 0:00:04]}  Kf7 {[%clk 0:00:08]} 50. Kg2 {[%clk 0:00:04]}  Ke6 {[%clk 0:00:08]} 51. Kg3 {[%clk 0:00:05]}  Kf5 {[%clk 0:00:08]} 52. Bg1 {[%clk 0:00:05]}  Bg5 {[%clk 0:00:07]} 53. Bf2 {[%clk 0:00:05]}  Bc1 {[%clk 0:00:07]} 54. Bg1 {[%clk 0:00:06]}  b5 {[%clk 0:00:06]} 55. Kg2 {[%clk 0:00:07]}  Bxa3 {[%clk 0:00:07]} 56. Be3 {[%clk 0:00:07]}  Bxb4 {[%clk 0:00:06]} 57. Bg1 {[%clk 0:00:08]}  Bc3 {[%clk 0:00:07]} 58. e6 {[%clk 0:00:09]}  b4 {[%clk 0:00:06]} 59. e7 {[%clk 0:00:10]}  b3 {[%clk 0:00:05]} 60. Bh2 {[%clk 0:00:11]}  b2 {[%clk 0:00:03]} 61. e8=Q {[%clk 0:00:12]}  b1=Q {[%clk 0:00:03]} 62. Qf7+ {[%clk 0:00:12]}  Kg5 {[%clk 0:00:03]} 63. Qf4+ {[%clk 0:00:11]}  Kg6 {[%clk 0:00:03]} 64. Qd6+ {[%clk 0:00:12]}  Kh7 {[%clk 0:00:02]} 65. Qxd5 {[%clk 0:00:11]}  Qc2+ {[%clk 0:00:02]} 66. Kg3 {[%clk 0:00:11]}  Qd3+ {[%clk 0:00:01]} 67. Kxg4 {[%clk 0:00:11]}  Qe2+ {[%clk 0:00:01]} 68. Kh3 {[%clk 0:00:10]}  Qe3+ {[%clk 0:00:01]} 69. Kh4 {[%clk 0:00:10]}  Qf2+ {[%clk 0:00:01]} 70. Kh3 {[%clk 0:00:10]}  Qe3+ {[%clk 0:00:01]} 71. Kg2 {[%clk 0:00:09]}  Bd2 {[%clk 0:00:01]} 72. Qf5+ {[%clk 0:00:09]} 1-0


[Site "https://www.chess.com"]